bitfinex/quotes_BTCUSD_20220109
["timestamp","ask_amount","ask_price","bid_price","bid_amount"]
[1641756574377,0.43978933,42634.0,42624.0,0.1]
[1641756574577,0.43978933,42634.0,42624.0,0.00129666]
[1641756574778,0.43978933,42634.0,42626.0,0.00012441]
[1641756574977,0.44092501,42634.0,42626.0,0.00012441]
[1641756575176,0.0011506,42635.0,42626.0,0.00012441]
[1641756575425,0.11735,42633.0,42626.0,0.00012441]
[1641756575624,0.04287086,42632.0,42626.0,0.00012441]
[1641756575830,0.23801089,42632.0,42628.0,0.0001244]
[1641756576027,0.29558124,42632.0,42628.0,0.0001244]
[1641756576423,0.3194072,42643.0,42628.0,0.0001244]
[1641756576424,0.2007,42629.0,42628.0,0.0001244]
[1641756576824,0.00987042,42646.0,42628.0,0.1001244]
[1641756577023,0.20003108,42645.0,42629.0,0.3194072]
[1641756577223,0.19993108,42645.0,42632.0,0.33270919]
[1641756577426,0.28544391,42636.0,42628.0,0.0001244]
[1641756578227,0.33524391,42636.0,42628.0,0.00084105]
[1641756578434,0.0012079,42633.0,42628.0,0.00084105]
[1641756578628,0.0432,42632.0,42628.0,0.00084105]
[1641756579069,0.36611255,42631.0,42628.0,0.00084105]
[1641756579268,0.0432,42630.0,42628.0,0.00021024]
[1641756579470,1.15,42629.0,42622.0,0.00084111]
[1641756579772,0.11737,42624.0,42622.0,0.00084111]
[1641756579974,0.0432,42623.0,42617.0,0.09584111]
[1641756580170,0.00129329,42627.0,42618.0,0.42046877]
[1641756580369,0.0432,42630.0,42611.0,0.1345226]
[1641756580370,0.26211251,42626.0,42621.0,0.09584111]
[1641756580571,0.36611255,42631.0,42621.0,0.09584111]
[1641756580769,0.058672,42629.0,42622.0,0.32462766]
[1641756580972,0.05853345,42629.0,42622.0,0.32462766]
[1641756581170,0.05853345,42629.0,42617.0,0.32462766]
[1641756581370,0.30714302,42623.0,42617.0,0.32462766]
[1641756581569,0.30714302,42623.0,42618.0,0.4428763]
[1641756581771,0.0432,42630.0,42622.0,0.09584111]
[1641756581973,0.20249113,42635.0,42622.0,0.09584111]
[1641756581974,0.20124415,42635.0,42629.0,0.39584111]
[1641756582172,0.20124415,42635.0,42634.0,0.09584111]
[1641756582370,0.201,42635.0,42634.0,0.09584111]
[1641756582572,0.02739,42640.0,42634.0,0.09584111]
[1641756582826,0.60516398,42639.0,42634.0,0.43468675]
[1641756583023,0.60516398,42639.0,42625.0,0.09584111]
[1641756583423,0.33000911,42641.0,42625.0,0.09584111]
[1641756583627,0.00129355,42638.0,42625.0,0.09584111]
[1641756583823,0.05866803,42634.0,42627.0,0.3226449]
[1641756584029,0.25,42645.0,42635.0,0.01783289]
[1641756584225,0.00013914,42639.0,42637.0,0.00123848]
[1641756584424,0.00013914,42639.0,42638.0,0.09584111]
[1641756584924,0.00013914,42639.0,42636.0,0.09584111]
[1641756585123,0.00013914,42639.0,42631.0,0.3273668]
[1641756585325,0.00013914,42639.0,42627.0,0.09584111]
[1641756585326,0.05879614,42639.0,42627.0,0.09584111]
[1641756585527,0.05837873,42639.0,42628.0,0.32611514]
[1641756585725,0.05242212,42639.0,42628.0,0.32611514]
[1641756585925,0.25414348,42634.0,42628.0,0.32611514]
[1641756586130,0.25414348,42634.0,42623.0,0.00123053]
[1641756586131,0.25394348,42634.0,42630.0,0.09584111]
[1641756586329,0.30394348,42634.0,42627.0,0.42195625]
[1641756586572,0.058666,42633.0,42627.0,0.42195625]
[1641756586872,0.058666,42633.0,42627.0,0.09584111]
[1641756587382,0.01225141,42635.0,42632.0,0.09707775]
[1641756587576,0.01225141,42635.0,42634.0,0.26760479]
[1641756587777,0.25,42645.0,42633.0,0.32611514]
[1641756587976,0.25,42645.0,42640.0,0.09584111]
[1641756588375,0.00013491,42641.0,42631.0,0.09584111]
[1641756588578,0.3173161,42637.0,42631.0,0.09584111]
[1641756588778,0.31798636,42637.0,42632.0,0.32611514]
[1641756588975,0.31798636,42637.0,42632.0,0.32560114]
[1641756589379,0.00067026,42637.0,42636.0,0.09584111]
[1641756592026,0.00067026,42637.0,42636.0,0.42215849]
[1641756592227,0.00067026,42637.0,42636.0,0.09584111]
[1641756592427,0.00067026,42637.0,42636.0,0.80670549]
[1641756592627,0.00067026,42637.0,42636.0,1.07215849]
[1641756593027,0.24777139,42641.0,42639.0,0.38553787]
[1641756593227,0.00013474,42641.0,42640.0,0.25200095]
[1641756593528,0.00013474,42641.0,42640.0,1.07527579]
[1641756593728,0.00013474,42641.0,42640.0,1.07655999]
[1641756593931,0.00053872,42665.0,42662.0,0.63959412]
[1641756594173,0.20147872,42665.0,42641.0,0.80127835]
[1641756594373,0.32880827,42647.0,42641.0,0.00127835]
[1641756594577,0.32905242,42647.0,42646.0,0.09584111]
[1641756594772,0.32905242,42647.0,42641.0,0.00127835]
[1641756594773,0.32905242,42647.0,42643.0,0.09584111]
[1641756595172,0.37905242,42647.0,42634.0,0.29736132]
[1641756595373,0.37905242,42647.0,42642.0,0.09584111]
[1641756595773,0.058648,42645.0,42642.0,0.09584111]
[1641756595973,0.0586531,42644.0,42642.0,0.09584111]
[1641756596276,0.23422787,42649.0,42642.0,0.09584111]
[1641756596476,0.0432,42648.0,42642.0,0.09584111]
[1641756596674,0.058648,42645.0,42642.0,0.09584111]
[1641756596873,0.27020259,42644.0,42642.0,0.09584111]
[1641756597280,0.32885415,42644.0,42631.0,0.01656935]
[1641756597477,0.32885415,42644.0,42632.0,0.00120824]
[1641756597674,0.27020259,42644.0,42632.0,0.00120824]
[1641756598128,0.058669,42636.0,42629.0,0.52520943]
[1641756598324,0.63920466,42634.0,42632.0,0.00021265]
[1641756598524,1.1432,42633.0,42632.0,0.00021265]
[1641756599126,0.0432,42633.0,42632.0,0.00021265]
[1641756599523,0.058668,42632.0,42630.0,0.00021265]
[1641756599723,0.9,42631.0,42629.0,0.42552208]
[1641756600124,0.16053841,42632.0,42629.0,0.42552208]
[1641756600324,0.101868,42632.0,42629.0,0.42552208]
[1641756601578,0.0432,42632.0,42631.0,0.01786517]
[1641756601776,1.0,42644.0,42631.0,0.01786517]
[1641756602173,1.0,42644.0,42631.0,0.00129582]
[1641756602375,0.99,42644.0,42631.0,0.00129582]
[1641756602572,1.048648,42644.0,42631.0,0.00129582]
[1641756602776,8.596e-05,42640.0,42631.0,0.00129582]
[1641756602974,0.0586621,42636.0,42631.0,0.00129582]
[1641756603172,0.0536621,42636.0,42631.0,0.00129582]
[1641756603373,0.33395251,42635.0,42629.0,0.42552208]
[1641756603573,0.058667,42632.0,42629.0,0.42552208]
[1641756604174,0.00013901,42638.0,42631.0,0.34897513]
[1641756604576,0.058651,42640.0,42631.0,0.34897513]
[1641756604775,0.058651,42640.0,42633.0,0.27169005]
[1641756604977,0.00013899,42638.0,42631.0,0.34897513]
[1641756605176,0.00013899,42638.0,42635.0,0.01656935]
[1641756605646,0.00013899,42638.0,42634.0,0.2537423]
[1641756606044,0.25208901,42642.0,42632.0,0.23064067]
[1641756606344,0.05865713,42638.0,42630.0,0.26489389]
[1641756606544,0.05865713,42638.0,42629.0,0.443324]
[1641756606744,0.05865713,42638.0,42630.0,0.25890399]
[1641756606949,0.25208901,42642.0,42630.0,0.25663931]
[1641756607147,0.058655,42637.0,42630.0,0.25663931]
[1641756607346,8.596e-05,42640.0,42634.0,0.4562853]
[1641756607546,8.596e-05,42640.0,42635.0,0.25027041]
[1641756607745,8.596e-05,42640.0,42635.0,0.25011447]
[1641756608152,0.00013873,42640.0,42639.0,0.01783809]
[1641756608348,0.00013873,42640.0,42639.0,1.40238509]
[1641756608848,0.98999901,42644.0,42634.0,0.4562853]
[1641756608849,0.96513774,42644.0,42642.0,0.00122544]
[1641756609073,0.96513774,42644.0,42642.0,0.42372495]
[1641756609275,0.01676742,42643.0,42642.0,0.42372495]
[1641756609477,0.03353484,42643.0,42642.0,0.42372495]
[1641756610075,0.03353484,42643.0,42642.0,0.7153796]
[1641756610275,0.03446164,42643.0,42642.0,0.7153796]
[1641756610475,0.03446164,42643.0,42642.0,0.97487918]
[1641756611484,0.03446164,42643.0,42642.0,0.68322453]
[1641756611678,0.20047728,42644.0,42642.0,0.42249951]
[1641756612080,0.20039141,42644.0,42642.0,0.42249951]
[1641756612820,0.20039141,42644.0,42643.0,0.24922418]
[1641756613422,0.20039141,42644.0,42642.0,0.73340653]
[1641756613629,0.20039141,42644.0,42641.0,0.00783809]
[1641756613823,0.20039141,42644.0,42634.0,0.00805074]
[1641756614222,0.20039141,42644.0,42637.0,0.00878199]
[1641756615023,0.00013846,42642.0,42637.0,0.38986206]
[1641756615221,0.00013846,42642.0,42637.0,0.0009439]
[1641756615424,0.00013846,42642.0,42634.0,0.00805074]
[1641756615624,0.0432,42641.0,42634.0,0.00021265]
[1641756615824,1.6476987,42639.0,42634.0,0.00042262]
[1641756616022,1.6908987,42639.0,42634.0,0.00042262]
[1641756616222,2.06412984,42639.0,42634.0,0.00042262]
[1641756616422,0.117323,42636.0,42634.0,0.00020997]
[1641756616670,0.117323,42636.0,42629.0,0.41873205]
[1641756616671,0.9,42635.0,42629.0,0.41873205]
[1641756616873,0.058664,42632.0,42629.0,0.41873205]
[1641756617873,0.00013162,42642.0,42630.0,0.00783809]
[1641756618072,0.058651,42640.0,42630.0,0.00783809]
[1641756618276,0.058651,42640.0,42634.0,0.00020997]
[1641756618673,0.29387098,42638.0,42634.0,0.00020997]
[1641756618871,0.11743861,42642.0,42634.0,0.00020997]
[1641756619072,0.11743861,42642.0,42634.0,0.00804806]
[1641756619073,0.05878061,42642.0,42634.0,0.00804806]
[1641756619272,8.338e-05,42639.0,42634.0,0.00804806]
[1641756619474,8.338e-05,42639.0,42634.0,0.00783809]
[1641756619672,8.338e-05,42639.0,42634.0,0.00283809]
[1641756619875,8.338e-05,42639.0,42633.0,0.0012882]
[1641756619876,8.338e-05,42639.0,42637.0,0.00127584]
[1641756620074,0.19087479,42644.0,42637.0,0.00127584]
[1641756620334,0.19087479,42644.0,42639.0,0.35400324]
[1641756620527,0.117274,42654.0,42639.0,0.35400324]
[1641756620928,0.11700921,42654.0,42639.0,0.16312845]
[1641756621129,0.20028,42653.0,42639.0,0.16312845]
[1641756621329,0.29330607,42651.0,42640.0,0.34512489]
[1641756621528,0.058638,42649.0,42640.0,0.34512489]
[1641756622432,0.29330607,42651.0,42640.0,0.34512489]
[1641756623031,0.29330607,42651.0,42639.0,0.16312845]
[1641756623230,0.29330607,42651.0,42639.0,0.15812845]
[1641756623430,0.29330607,42651.0,42638.0,0.00125879]
[1641756623636,0.00129145,42649.0,42632.0,0.11726596]
[1641756623830,0.058642,42646.0,42632.0,0.11726596]
[1641756624077,0.25538998,42639.0,42636.0,0.2598952]
[1641756624281,8.592e-05,42647.0,42637.0,0.00126072]
[1641756624479,8.592e-05,42647.0,42643.0,0.31287807]
[1641756625082,0.058634,42652.0,42643.0,0.31287807]
[1641756625276,0.03442506,42652.0,42643.0,0.31287807]
[1641756625476,0.03442506,42652.0,42643.0,0.30787807]
[1641756625678,0.03442506,42652.0,42643.0,0.30287807]
[1641756625877,0.24,42654.0,42647.0,0.44388557]
[1641756626077,0.00013873,42650.0,42647.0,0.44388557]
[1641756626679,0.00013873,42650.0,42649.0,0.00125892]
[1641756626882,0.00013873,42650.0,42649.0,0.38580592]
[1641756627081,0.00013873,42650.0,42649.0,0.70277818]
[1641756627280,0.00013873,42651.0,42650.0,0.35335518]
[1641756627480,0.00013873,42651.0,42650.0,0.67032744]
[1641756627927,0.00055484,42658.0,42650.0,0.67155564]
[1641756628328,8.06e-05,42653.0,42650.0,0.67155564]
[1641756629428,0.41605596,42658.0,42651.0,0.384547]
[1641756629626,0.41605596,42658.0,42645.0,0.11723004]
[1641756629627,0.058628,42657.0,42645.0,0.25343035]
[1641756629828,0.05483824,42657.0,42645.0,0.25343035]
[1641756630027,2.43199678,42655.0,42644.0,0.00012292]
[1641756630429,2.7454129,42655.0,42645.0,0.32006701]
[1641756631227,2.49062678,42655.0,42645.0,0.32006701]
[1641756631427,2.49062678,42655.0,42646.0,0.25748271]
[1641756631676,0.00014081,42653.0,42645.0,0.32006701]
[1641756632273,0.00014081,42653.0,42649.0,0.00129266]
[1641756632672,0.00014084,42653.0,42649.0,0.00129266]
[1641756633277,0.00014084,42653.0,42649.0,0.44861055]
[1641756633472,0.00014084,42653.0,42650.0,0.25077072]
[1641756633675,0.00014084,42653.0,42650.0,0.2523934]
[1641756633874,0.00014086,42653.0,42650.0,0.2473934]
[1641756634074,0.32964584,42660.0,42650.0,0.2473934]
[1641756634473,0.32964584,42660.0,42652.0,0.29100026]
[1641756634676,0.38826784,42660.0,42652.0,0.29100026]
[1641756634873,0.38826784,42660.0,42656.0,0.33643086]
[1641756635073,0.32964584,42660.0,42656.0,0.33643086]
[1641756635340,0.32964584,42660.0,42649.0,0.00129266]
[1641756635541,0.32964584,42660.0,42640.0,0.31778536]
[1641756635542,0.20297401,42652.0,42640.0,0.31778536]
[1641756635735,0.32025301,42652.0,42640.0,0.31778536]
[1641756635936,0.32025301,42652.0,42638.0,0.00120363]
[1641756636136,0.20297401,42652.0,42638.0,0.00120363]
[1641756636337,0.20297401,42652.0,42646.0,0.32032418]
[1641756636537,0.20297401,42652.0,42647.0,1.65238726]
[1641756636738,0.20297401,42652.0,42647.0,0.40538726]
[1641756636939,0.20297401,42652.0,42650.0,0.00129374]
[1641756637138,8.569e-05,42660.0,42652.0,0.5]
[1641756637337,0.0001,42666.0,42652.0,0.5]
[1641756637338,0.00013786,42655.0,42653.0,0.70233236]
[1641756637637,0.00013786,42655.0,42654.0,1.17911037]
[1641756637838,0.00013786,42655.0,42654.0,2.81186999]
[1641756638044,0.00013786,42655.0,42654.0,2.74086312]
[1641756638341,0.00055129,42665.0,42654.0,2.74086312]
[1641756638342,0.0001379,42656.0,42654.0,0.68817349]
[1641756638540,0.89789847,42672.0,42655.0,0.64549023]
[1641756638740,0.89789847,42672.0,42655.0,0.26094323]
[1641756639575,0.0002,42674.0,42663.0,0.45309155]
[1641756639777,0.0002,42674.0,42672.0,1.01633036]
[1641756639985,0.20066,42681.0,42672.0,1.01633036]
[1641756639986,0.0004,42689.0,42674.0,0.25]
[1641756640375,0.00034143,42685.0,42676.0,0.8]
[1641756640579,0.0004,42689.0,42684.0,0.35240756]
[1641756640580,9.08501683,42688.0,42684.0,0.35240756]
[1641756640774,9.08501683,42688.0,42684.0,1.65796514]
[1641756641279,9.08501683,42688.0,42684.0,0.05983878]
[1641756641476,0.31704652,42687.0,42672.0,1.01512047]
[1641756641674,0.05859055,42684.0,42672.0,1.01512047]
[1641756641874,0.27687684,42685.0,42673.0,0.31664652]
[1641756642275,0.27687684,42685.0,42677.0,0.00128257]
[1641756642474,0.27687684,42685.0,42678.0,0.40532641]
[1641756642475,0.27187684,42685.0,42678.0,0.40532641]
[1641756642674,0.27225574,42685.0,42678.0,0.40532641]
[1641756642926,0.27225574,42685.0,42678.0,0.40032641]
[1641756643327,0.27225574,42685.0,42678.0,0.40012641]
[1641756643527,0.27225574,42685.0,42679.0,0.31664652]
[1641756643730,0.00013088,42684.0,42678.0,0.40012641]
[1641756643927,0.00013088,42684.0,42679.0,0.24763168]
[1641756643928,0.00050978,42684.0,42679.0,0.24763168]
[1641756644130,0.00050978,42684.0,42680.0,1.247]
[1641756644330,0.00050978,42684.0,42678.0,0.40012641]
[1641756644528,0.0004,42687.0,42679.0,0.25579127]
[1641756644727,0.00013013,42684.0,42678.0,0.40012641]
[1641756644928,0.30977291,42683.0,42678.0,0.40012641]
[1641756645530,0.30977291,42683.0,42673.0,1.247]
[1641756645732,0.30977291,42683.0,42674.0,0.00123574]
[1641756645733,0.30477291,42683.0,42674.0,0.00123574]
[1641756646031,0.29477291,42683.0,42672.0,1.01260586]
[1641756646231,0.29477291,42683.0,42673.0,0.24706686]
[1641756646580,0.13,42686.0,42680.0,0.39355895]
[1641756646778,0.13,42686.0,42681.0,0.31566998]
[1641756646978,0.13,42686.0,42675.0,0.00121271]
[1641756647180,1.09146887,42672.0,42670.0,0.11715]
[1641756647382,0.06529161,42662.0,42654.0,0.22579913]
[1641756647582,0.0432,42661.0,42654.0,0.22579913]
[1641756647980,1.09910628,42671.0,42647.0,0.72579913]
[1641756648180,0.24750785,42652.0,42647.0,0.72579913]
[1641756648583,0.24750785,42652.0,42647.0,0.5]
[1641756648781,0.23750785,42652.0,42647.0,0.5]
[1641756648981,0.22006178,42651.0,42647.0,0.5]
[1641756649185,1.10783713,42648.0,42647.0,0.5]
[1641756649581,0.65,42648.0,42647.0,0.5]
[1641756649782,0.11726889,42650.0,42647.0,0.49]
[1641756649982,0.42,42648.0,42647.0,0.49]
[1641756651628,0.4192046,42648.0,42647.0,0.49]
[1641756652228,0.4192046,42648.0,42647.0,0.485]
[1641756652431,0.5124046,42648.0,42647.0,0.485]
[1641756652630,1.5124046,42648.0,42647.0,0.485]
[1641756653535,2.1624046,42648.0,42647.0,0.015777]
[1641756653732,2.1624046,42648.0,42633.0,0.25904093]
[1641756653733,0.05991,42640.0,42633.0,0.25904093]
[1641756653935,0.0432,42639.0,42630.0,0.32256217]
[1641756654178,0.00122577,42634.0,42630.0,0.32256217]
[1641756654376,0.0432,42633.0,42630.0,0.32256217]
[1641756654777,0.0432,42633.0,42621.0,0.00121481]
[1641756654778,0.26733167,42628.0,42621.0,0.00121481]
[1641756654978,0.26733167,42628.0,42609.0,0.45801039]
[1641756654979,0.11736483,42619.0,42613.0,0.18473663]
[1641756655179,0.11736365,42620.0,42611.0,0.7]
[1641756655376,0.0432,42622.0,42609.0,0.64109663]
[1641756655777,0.0432,42622.0,42615.0,0.27515194]
[1641756655778,0.27881709,42618.0,42615.0,0.27515194]
[1641756655975,0.00124964,42619.0,42614.0,0.00012592]
[1641756656479,0.05868,42617.0,42604.0,0.00129022]
[1641756656680,0.00127599,42615.0,42600.0,0.44989237]
[1641756656879,0.00127599,42615.0,42599.0,0.44612322]
[1641756657077,0.0012597,42615.0,42614.0,0.00021137]
[1641756657476,0.0012597,42615.0,42605.0,0.32171144]
[1641756657477,0.0012597,42615.0,42605.0,0.31276841]
[1641756658530,0.05868542,42612.0,42605.0,0.31276841]
[1641756658733,0.058686,42611.0,42605.0,0.24601047]
[1641756658929,0.058686,42611.0,42604.0,0.25421672]
[1641756659131,0.00127604,42610.0,42601.0,0.31849008]
[1641756659331,0.00127604,42610.0,42606.0,0.00012622]
[1641756659631,0.04447604,42610.0,42606.0,0.00012622]
[1641756659829,0.00124628,42608.0,42597.0,0.66250834]
[1641756660029,0.24057471,42603.0,42597.0,0.96995332]
[1641756660231,0.00124628,42608.0,42606.0,0.00012622]
[1641756660434,0.117394,42607.0,42606.0,2.622e-05]
[1641756660935,0.62608817,42607.0,42606.0,2.622e-05]
[1641756661134,0.62608817,42607.0,42595.0,0.000505]
[1641756661135,0.11742952,42603.0,42595.0,0.000505]
[1641756661334,0.00120088,42596.0,42595.0,0.000505]
[1641756661603,0.05872,42594.0,42591.0,0.015]
[1641756661804,0.0432,42593.0,42591.0,0.015]
[1641756662403,0.0932,42593.0,42579.0,0.34889204]
[1641756662604,0.058733,42586.0,42579.0,0.34889204]
[1641756663004,0.00120088,42596.0,42580.0,0.71584684]
[1641756663204,0.24,42593.0,42580.0,0.33129984]
[1641756663403,0.24,42593.0,42585.0,0.00123944]
[1641756663602,0.24,42593.0,42580.0,0.33003633]
[1641756663803,0.25641509,42586.0,42582.0,0.37016321]
[1641756664006,0.25641509,42586.0,42576.0,0.15]
[1641756664200,0.00124001,42584.0,42576.0,0.15]
[1641756664801,0.00121108,42583.0,42582.0,0.00021279]
[1641756665001,0.3104541,42583.0,42582.0,0.00021279]
[1641756665630,0.2960541,42583.0,42582.0,0.00021279]
[1641756665826,0.6460541,42583.0,42582.0,0.00021279]
[1641756666027,0.647256,42583.0,42580.0,0.0002128]
[1641756666227,0.00123827,42581.0,42580.0,0.0002128]
[1641756666427,0.00123827,42581.0,42574.0,0.00085132]
[1641756666428,0.32718033,42575.0,42574.0,0.00085132]
[1641756666631,0.38592033,42575.0,42566.0,0.12205521]
[1641756666828,0.38592033,42575.0,42565.0,2.03399943]
[1641756667227,0.3759805,42588.0,42573.0,0.00085133]
[1641756667428,1.15,42581.0,42568.0,0.43312104]
[1641756667629,0.058744,42572.0,42565.0,2.03399943]
[1641756668528,0.058744,42572.0,42565.0,2.43527137]
[1641756668730,0.21091019,42578.0,42566.0,1.145]
[1641756668932,0.03467916,42578.0,42570.0,0.00124773]
[1641756669382,0.00014679,42575.0,42571.0,0.66806348]
[1641756669582,0.0999,42581.0,42574.0,0.00128326]
[1641756669783,0.0999,42581.0,42579.0,0.33741749]
[1641756670081,0.0999,42581.0,42580.0,0.70761492]
[1641756670280,0.0999,42581.0,42580.0,0.32306792]
[1641756670481,0.0999,42581.0,42580.0,0.00127588]
[1641756670681,0.5969,42594.0,42580.0,0.6672102]
[1641756670682,0.29033926,42589.0,42580.0,0.6672102]
[1641756670980,0.29033926,42589.0,42580.0,0.34541816]
[1641756671180,2.21782246,42587.0,42578.0,0.03467916]
[1641756671580,2.27654746,42587.0,42578.0,0.02967916]
[1641756671979,0.47913217,42586.0,42578.0,0.02967916]
[1641756672182,0.42703075,42584.0,42578.0,0.02967916]
[1641756672382,0.23718462,42580.0,42578.0,0.02967916]
[1641756672835,0.058739,42582.0,42578.0,0.02967916]
[1641756673036,0.25022,42585.0,42578.0,0.02967916]
[1641756673236,0.25022,42585.0,42578.0,0.30343729]
[1641756673436,0.25022,42585.0,42572.0,0.00126154]
[1641756673836,0.05873,42582.0,42572.0,0.00126154]
[1641756674037,0.05873,42582.0,42558.0,0.13]
[1641756674236,0.30025143,42575.0,42565.0,2.03523153]
[1641756674442,0.25022,42585.0,42568.0,0.27984407]
[1641756674637,0.05,42583.0,42570.0,0.00129255]
[1641756674839,1.85801861,42587.0,42573.0,0.00126047]
[1641756675038,0.1,42585.0,42568.0,0.00124891]
[1641756675239,0.058738,42577.0,42565.0,2.03399943]
[1641756675440,0.29483504,42577.0,42566.0,0.00127852]
[1641756675639,0.34483504,42577.0,42567.0,0.41927146]
[1641756675839,0.117472,42583.0,42567.0,0.41927146]
[1641756676044,0.117472,42583.0,42566.0,0.33094496]
[1641756676045,1.85801861,42587.0,42574.0,0.437153]
[1641756676245,0.00014651,42579.0,42576.0,0.00125924]
[1641756676442,0.00014651,42579.0,42577.0,0.384547]
[1641756676680,0.00014651,42579.0,42577.0,0.27317459]
[1641756676881,0.00014651,42579.0,42578.0,0.32145758]
[1641756677085,0.00014651,42579.0,42576.0,0.00125924]
[1641756677281,0.00014652,42580.0,42576.0,0.00125924]
[1641756677482,0.00014652,42580.0,42575.0,0.32145758]
[1641756677781,0.17619,42595.0,42575.0,0.32145758]
[1641756677980,0.11746431,42587.0,42575.0,0.32145758]
[1641756678181,0.28284472,42578.0,42572.0,0.00042566]
[1641756678381,0.28284472,42578.0,42572.0,0.00021283]
[1641756678782,0.058738,42577.0,42572.0,0.00021283]
[1641756678983,0.28284472,42578.0,42576.0,0.33077293]
[1641756679184,0.00014652,42580.0,42576.0,0.33077293]
[1641756679384,0.00014652,42580.0,42575.0,0.32884452]
[1641756679590,0.20004,42584.0,42568.0,0.0012924]
[1641756679785,0.058732,42581.0,42568.0,0.0012924]
[1641756680188,0.0587399,42577.0,42565.0,2.03399943]
[1641756680442,0.05820837,42577.0,42574.0,0.00021282]
[1641756680643,0.0001462,42582.0,42574.0,0.00021282]
[1641756680940,1.0,42579.0,42574.0,0.00021282]
[1641756681638,0.99965604,42579.0,42577.0,0.38737443]
[1641756682038,1.23965604,42579.0,42577.0,0.38737443]
[1641756682242,1.23937328,42579.0,42577.0,0.38737443]
[1641756682838,1.23937328,42579.0,42575.0,0.32949044]
[1641756683039,1.23937328,42579.0,42575.0,0.31449044]
[1641756684079,1.23937328,42579.0,42574.0,0.00021282]
[1641756684981,1.23937328,42579.0,42574.0,0.00020588]
[1641756685177,1.29810528,42579.0,42574.0,0.00020588]
[1641756685377,1.23937328,42579.0,42574.0,0.00020588]
[1641756685877,1.23937328,42579.0,42574.0,0.00041176]
[1641756686077,0.17270622,42579.0,42576.0,0.00122138]
[1641756686276,0.00014163,42582.0,42579.0,0.17270622]
[1641756686477,1.63e-06,42582.0,42581.0,0.38580585]
[1641756686679,0.00023875,42590.0,42581.0,2.19157054]
[1641756686680,1.038e-05,42590.0,42581.0,2.19157054]
[1641756686878,1.038e-05,42590.0,42589.0,0.00129256]
[1641756687078,1.038e-05,42590.0,42589.0,2.00209704]
[1641756688338,0.05869255,42610.0,42589.0,1.67603956]
[1641756688537,0.32327756,42606.0,42596.0,0.00122994]
[1641756688735,0.05869255,42610.0,42596.0,0.00122994]
[1641756688935,0.058695,42606.0,42596.0,0.00122994]
[1641756689537,0.00014597,42603.0,42596.0,1.00122994]
[1641756690143,0.20058,42615.0,42596.0,1.00122994]
[1641756690144,0.59785765,42616.0,42597.0,0.55]
[1641756690341,0.058695,42606.0,42598.0,0.32605748]
[1641756690538,0.00014885,42602.0,42601.0,0.35119587]
[1641756690939,0.00014885,42602.0,42601.0,0.33960287]
[1641756691579,0.32752063,42612.0,42601.0,0.33960287]
[1641756691780,0.32752063,42612.0,42602.0,0.25430633]
[1641756692087,0.058691,42608.0,42593.0,0.32665116]
[1641756692279,0.058691,42608.0,42589.0,0.00123214]
[1641756692579,0.058691,42608.0,42605.0,0.0065]
[1641756693579,0.11740931,42607.0,42605.0,0.0065]
[1641756693780,0.31405824,42595.0,42589.0,0.00123214]
[1641756694479,0.117416,42599.0,42589.0,0.00123214]
[1641756694480,0.4063348,42599.0,42589.0,0.00123214]
[1641756694783,0.4063348,42599.0,42580.0,0.30639883]
[1641756694784,0.20082,42592.0,42582.0,0.43912269]
[1641756694980,0.20082,42592.0,42590.0,0.00021277]
[1641756695179,0.20082,42592.0,42582.0,0.43433546]
[1641756695180,0.6,42591.0,42582.0,0.43433546]
[1641756695435,0.058719,42587.0,42582.0,0.43433546]
[1641756695730,0.058719,42587.0,42583.0,0.31528125]
[1641756696130,0.058719,42587.0,42579.0,0.17270622]
[1641756697230,0.058719,42587.0,42579.0,0.53053285]
[1641756698329,0.058719,42587.0,42585.0,0.40777014]
[1641756698531,8.775e-05,42600.0,42586.0,0.32665116]
[1641756698831,0.117425,42596.0,42586.0,0.32665116]
[1641756699283,0.24535663,42600.0,42585.0,0.40777014]
[1641756699483,0.258807,42596.0,42585.0,0.40777014]
[1641756699682,0.258807,42596.0,42584.0,0.001441]
[1641756700081,0.11744212,42594.0,42584.0,0.00021279]
[1641756700283,0.30921021,42586.0,42584.0,0.00021279]
[1641756700488,0.30921021,42586.0,42579.0,0.17318998]
[1641756700686,0.30921021,42586.0,42579.0,0.61899276]
[1641756700883,0.117442,42591.0,42579.0,0.61899276]
[1641756701287,0.058718,42588.0,42582.0,0.00127361]
[1641756701683,0.053718,42588.0,42582.0,0.00127361]
[1641756701887,0.117429,42595.0,42586.0,0.36616252]
[1641756702085,0.28517269,42601.0,42586.0,0.36616252]
[1641756702086,0.760629,42606.0,42595.0,0.117429]
[1641756702286,0.058694,42606.0,42597.0,0.00124568]
[1641756702929,0.32296849,42599.0,42597.0,0.00124568]
[1641756703335,0.2004,42604.0,42597.0,0.00124568]
[1641756703528,0.058706,42599.0,42597.0,0.00124568]
[1641756704332,0.26750343,42601.0,42597.0,0.00124568]
[1641756704629,0.26750343,42601.0,42597.0,0.32525805]
[1641756705029,0.32620443,42601.0,42597.0,0.32525805]
[1641756705427,0.00014749,42602.0,42597.0,0.32525805]
[1641756705629,0.17611527,42615.0,42598.0,0.65]
[1641756705835,0.17611527,42615.0,42599.0,0.29439785]
[1641756705836,0.00014757,42603.0,42599.0,0.29439785]
[1641756706675,0.00014913,42602.0,42600.0,0.33535322]
[1641756706880,0.00014913,42602.0,42601.0,1.738549]
[1641756707077,0.00014913,42602.0,42601.0,1.73977921]
[1641756707275,9.13e-06,42602.0,42601.0,1.73977921]
[1641756707475,0.0001,42619.0,42602.0,1.247]
[1641756707677,0.0001,42619.0,42613.0,0.00127833]
[1641756708076,0.0001,42619.0,42614.0,0.40628168]
[1641756708275,0.0001,42619.0,42615.0,0.30282218]
[1641756708677,0.0001,42621.0,42618.0,0.29553509]
[1641756708875,0.0001,42622.0,42619.0,0.28503304]
[1641756709077,0.0001,42624.0,42620.0,0.00127213]
[1641756709277,0.0001,42624.0,42621.0,0.38582496]
[1641756709476,0.0001,42627.0,42622.0,0.34391872]
[1641756709778,0.0001,42627.0,42622.0,0.92625167]
[1641756709976,0.0001,42627.0,42623.0,0.38437381]
[1641756710180,0.0001,42627.0,42624.0,0.37145882]
[1641756710440,0.1001,42631.0,42625.0,0.383106]
[1641756710640,0.0002,42632.0,42629.0,0.00121719]
[1641756710852,0.000121,42633.0,42629.0,0.00121719]
[1641756711145,0.000121,42633.0,42630.0,0.41941363]
[1641756711338,0.1,42634.0,42631.0,0.33341661]
[1641756711539,0.0002,42636.0,42631.0,0.33341661]
[1641756711738,0.00014297,42633.0,42631.0,0.33341661]
[1641756711938,0.0001,42636.0,42631.0,0.33341661]
[1641756712138,0.09966397,42633.0,42631.0,0.33341661]
[1641756712338,0.09966397,42632.0,42631.0,0.33341661]
[1641756712539,0.09966397,42632.0,42627.0,0.37047739]
[1641756712740,0.09966397,42629.0,42627.0,0.37047739]